Workbook

Sheet Welcome
B2: HSM Chapter 12 NCHRP 17-58 Spreadsheet
B6: Developed by: Michael P. Pratt, Srinivas R. Geedipally, Hadi Khazraee, and Dominique Lord
B7: Version 2
B8: FOREWORD
B9: This software can be used to assist with the assessment of the safety performance of urban and suburban arterial facilities,
B10: including segments and intersections. It is intended for use by engineers and technicians responsible for safety analysis or
B11: management of urban streets.
B13: This software is intended for use with the updated Chapter 12 of the Highway Safety Manual. The analyst is encouraged to read
B14: the document so that he or she will have an understanding of how best to use the software and interpret its output.
B16: The equations used in this software are documented in this chapter. Analysts should refer to the chapter whenever they have
B17: questions about the modeling approach, assumptions, or limitations.
B19: INSTRUCTIONS
B21: Each cell on the analysis worksheets has been color-coded to indicate the type of data entered or displayed. The following list
B22: indentifies the meaning of each cell color.
B24: Blue cells represent "input data." Each time the worksheet is used, the values in these cells should be changed to represent the
C25: segment or intersection being evaluated. Input data must be provided by the analyst.
B26: Yellow cells represent "calibration factors." The values in these cells represent reasonable values for most situations and do not
C27: need to be changed. Calibration factors can be changed to more accurately reflect local conditions. However, field data
C28: from sites local to the agency should be the basis for this change.
B29: Purple cells represent "key output variables." The values are computed using the input data, calibration factors, and default values.
B30: Note: White, gray, and purple cells are locked and cannot be changed.
B32: DISCLAIMER
B33: No warranty is made by the developers or their employer as to the accuracy, completeness, or reliability of this software and its
B34: associated equations and documentation. No responsibility is assumed by the developers for incorrect results or damages resulting
B35: from the use of this software.
B37: COPYRIGHT © 2015
B38: This software is copyrighted. All rights are reserved. This product may not, in whole or in part, be copied, photocopied, reproduced,
B39: translated, or reduced to any electronic medium or machine-readable form without prior consent, in writing, from Michael P. Pratt.
B40: This product is subject to change without notice and does not represent a commitment on the part of Michael P. Pratt to notify
B41: any person of such revision.

Sheet Two-way segments
C3: Safety Prediction Worksheet for Two-Way Urban and Suburban Arterial Segments
C5: General Information | I5: Site Information
C7: Analyst | D7: MPP | I7: Street number | K7: SH 1 | T7: Intercept | V7: AADT coefficient | Y7: Intercept
C8: Agency | D8: TTI | I8: Street name | K8: Main Street | T8: F+I | U8: PDO | V8: F+I | W8: PDO | Y8: Segment type | Z8: Multiple,F+I | AA8: Single,F+I | AB8: Multiple,PDO | AC8: Single,PDO
C9: Date | D9: =TODAY() -> 2015-12-09 | I9: Segment number | K9: 1 | S9: Multiple | T9: =VLOOKUP($H$27,$Y$8:$AC$12,MATCH($S9&","&T$8,$Y$8:$AC$8,0),FALSE) -> -11.56 | U9: =VLOOKUP($H$27,$Y$8:$AC$12,MATCH($S9&","&U$8,$Y$8:$AC$8,0),FALSE) -> -9.21 | V9: =VLOOKUP($H$27,$Y$15:$AC$19,MATCH($S9&","&V$8,$Y$15:$AC$15,0),FALSE) -> 1.24 | W9: =VLOOKUP($H$27,$Y$15:$AC$19,MATCH($S9&","&W$8,$Y$15:$AC$15,0),FALSE) -> 1.06 | Y9: 6U | Z9: -15.42 | AA9: -4.54 | AB9: -15.68 | AC9: -3.98
C10: Location | D10: City of Fillmore | I10: Analysis year | K10: 2011 | S10: Single | T10: =VLOOKUP($H$27,$Y$8:$AC$12,MATCH($S10&","&T$8,$Y$8:$AC$8,0),FALSE) -> -5.26 | U10: =VLOOKUP($H$27,$Y$8:$AC$12,MATCH($S10&","&U$8,$Y$8:$AC$8,0),FALSE) -> -4.71 | V10: =VLOOKUP($H$27,$Y$15:$AC$19,MATCH($S10&","&V$8,$Y$15:$AC$15,0),FALSE) -> 0.46 | W10: =VLOOKUP($H$27,$Y$15:$AC$19,MATCH($S10&","&W$8,$Y$15:$AC$15,0),FALSE) -> 0.43 | Y10: 6D | Z10: -11.56 | AA10: -5.26 | AB10: -9.21 | AC10: -4.71
Y11: 7T | Z11: -11.44 | AA11: -4.54 | AB11: -9.2 | AC11: -3.98
T12: K | U12: A | V12: B | Y12: 8D | Z12: -11.38 | AA12: -5.36 | AB12: -8.84 | AC12: -4.34
S13: Constant | T13: -5.1142 | U13: -1.7347 | V13: -0.5751
C14: Output Summary | F14: Predicted crash frequency, crashes / year | L14: Combined CMF | S14: Area type | T14: -0.4714 | U14: -0.2505 | V14: -0.2505 | Y14: AADT coefficient
F15: F+I | G15: PDO | H15: Total | L15: F+I | M15: PDO | S15: Speed | T15: 0.0442 | U15: 0 | V15: 0 | Y15: Segment type | Z15: Multiple,F+I | AA15: Single,F+I | AB15: Multiple,PDO | AC15: Single,PDO
E16: Total crashes | F16: =SUM(F17:F20) -> 6.785066254 | G16: =SUM(G17:G18) -> 8.555698488 | H16: =F16+G16 -> 15.34076474 | K16: Multiple-vehicle crashes | L16: =PRODUCT(H58:H67) -> 1.034843285 | M16: =PRODUCT(K58:K67) -> 1.034843285 | S16: 6D | T16: -0.3327 | U16: -0.2923 | V16: -0.0938 | Y16: 6U | Z16: 1.63 | AA16: 0.37 | AB16: 1.7 | AC16: 0.34
E17: Multiple-vehicle crashes | F17: =$H51*$H$28*EXP(T9+V9*LN($H$29))*L16 -> 5.492259873 | G17: =$H51*$H$28*EXP(U9+W9*LN($H$29))*M16 -> 7.388894387 | K17: Single-vehicle crashes | L17: =PRODUCT(I58:I67) -> 2.399610128 | M17: =PRODUCT(L58:L67) -> 2.399610128 | S17: 8D | T17: -0.2296 | U17: -0.523 | V17: -0.2373 | Y17: 6D | Z17: 1.24 | AA17: 0.46 | AB17: 1.06 | AC17: 0.43
E18: Single-vehicle crashes | F18: =$H51*$H$28*EXP(T10+V10*LN($H$29))*L17 -> 0.9479016018 | G18: =$H51*$H$28*EXP(U10+W10*LN($H$29))*M17 -> 1.166804101 | S18: V | T18: =T13+T14*IF($H$26="Urban",1,0)+T15*$H$31+T16*IF($H$27="6D",1,0)+T17*IF($H$27="8D",1,0) -> -3.4579 | U18: =U13+U14*IF($H$26="Urban",1,0)+U15*$H$31+U16*IF($H$27="6D",1,0)+U17*IF($H$27="8D",1,0) -> -2.027 | V18: -0.6689 | Y18: 7T | Z18: 1.24 | AA18: 0.37 | AB18: 1.06 | AC18: 0.34
E19: Vehicle-pedestrian crashes | F19: =SUM(F17:G18)*$H52 -> 0.2249378994 | J19: Severity distribution for F+I crashes | S19: P | T19: =EXP(T18)/(1/$H54+EXP($T18)+EXP($U18)+EXP($V18)) -> 0.01879789718 | U19: =EXP(U18)/(1/$H54+EXP($T18)+EXP($U18)+EXP($V18)) -> 0.07862148527 | V19: =EXP(V18)/(1/$H54+EXP($T18)+EXP($U18)+EXP($V18)) -> 0.3057430403 | Y19: 8D | Z19: 1.24 | AA19: 0.46 | AB19: 1.06 | AC19: 0.43
E20: Vehicle-bicycle crashes | F20: =SUM(F17:G18)*$H53 -> 0.1199668797 | J20: K | K20: A | L20: B | M20: C
J21: =$F16*T19 -> 0.1275449778 | K21: =$F16*U19 -> 0.5334519865 | L21: 2.074486785 | M21: =F16*(1-SUM(T19:V19)) -> 4.049582505
C23: Input Data | H23: Value | J23: Advisory Messages
C25: Basic Roadway Data | S25: Minimum | T25: Maximum | V25: Segment type | W25: Minimum | X25: Maximum
C26: Area type | H26: Suburban | J26: . | V26: 6U | W26: 0 | X26: 78000
C27: Segment type | H27: 6D | J27: =IF(H27="7T","6 lanes + two-way left-turn lane.",".") -> . | V27: 6D | W27: 0 | X27: 118000
C28: Segment length, mi | H28: 0.4 | J28: . | V28: 7T | W28: 0 | X28: 94000
C29: Annual average daily traffic (AADT), veh/day | H29: 90000 | I29: =IF(OR(H29<S29,H29>T29),"Check","") ->  | J29: . | S29: =VLOOKUP($H$27,$V$25:$X$29,MATCH(S$25,$V$25:$X$25,0),FALSE) -> 0 | T29: =VLOOKUP($H$27,$V$25:$X$29,MATCH(T$25,$V$25:$X$25,0),FALSE) -> 118000 | V29: 8D | W29: 0 | X29: 152000
C30: Number of highway-rail grade crossings present | H30: 0 | J30: =IF(H30>0,ROUND(H30/H28,0)&" crossings per mile.",".") -> . | S30: 0 | T30: 3
C31: Posted speed limit, mi/h | H31: 45 | J31: =IF(AND(H31<=30,H27="8D"),"Estimated ped/bike factors.",".") -> .
C32: Automated speed enforcement present? | H32: No | J32: .
C34: Access Data
C35: Driveway count | E35: Major commercial | H35: 6 | I35: =IF(OR(H35<S35,H35>T35),"Check","") ->  | J35: =IF(H35>0,ROUND(H35/H$28,0)&" major comm. driveways per mile.",".") -> 15 major comm. driveways per mile. | S35: 0 | T35: =138.8*H28 -> 55.52
E36: Major industrial | H36: 1 | J36: =IF(H36>0,ROUND(H36/H$28,0)&" major industrial driveways per mile.",".") -> 3 major industrial driveways per mile. | S36: 0 | T36: =100*H28 -> 40
E37: Minor | H37: 7 | J37: =IF(H37>0,ROUND(H37/H$28,0)&" minor driveways per mile.",".") -> 18 minor driveways per mile. | S37: 0 | T37: =119.2*H28 -> 47.68
C39: Cross Section Data
C40: Lane width, ft | H40: 11 | I40: =IF(OR(H40<S40,H40>T40),"Check","") ->  | J40: . | S40: 9 | T40: 27
C41: Outside shoulder width, ft | H41: 1.5 | J41: . | S41: 0 | T41: 14
C42: Median width, ft | H42: 13 | J42: =IF(AND(H27<>"6U",H42=0),"Must enter nonzero median width.",".") -> . | S42: 0 | T42: 240
C43: Median barrier present? | H43: Yes | J43: .
C45: Roadside Data
C46: Roadside fixed object count | H46: 18 | I46: =IF(OR(H46<S46,H46>T46),"Check","") ->  | J46: =IF(H46>0,ROUND(H46/H28,0)&" objects per mile.",".") -> 45 objects per mile. | S46: 0 | T46: =508*H28 -> 203.2
C47: Average roadside fixed object offset, ft | H47: 7 | J47: . | S47: 0 | T47: 30
C49: Calibration Factors | H49: Value | K49: Default Values | S49: Segment type | T49: fped, ≤ 30 mph | U49: fped, ≥ 35 mph | V49: fbike, ≤ 30 mph | W49: fbike, ≥ 35 mph
C51: Local calibration factor (C) | H51: =K51 -> 1 | K51: 1 | S51: 6U | T51: 0.018 | U51: 0.013 | V51: 0.013 | W51: 0.007
C52: Adjustment factor for pedestrians (fped) | H52: =K52 -> 0.015 | K52: =VLOOKUP($H$27,$S$51:$W$54,IF($H$31<=30,2,3),FALSE) -> 0.015 | S52: 6D | T52: 0.029 | U52: 0.015 | V52: 0.007 | W52: 0.008
C53: Adjustment factor for bicyclists (fbike) | H53: =K53 -> 0.008 | K53: =VLOOKUP($H$27,$S$51:$W$54,IF($H$31<=30,4,5),FALSE) -> 0.008 | S53: 7T | T53: 0.034 | U53: 0.014 | V53: 0.025 | W53: 0.001
C54: Severity distribution calibration factor (Csdf,tws) | H54: =K54 -> 1 | K54: 1 | S54: 8D | T54: =U54 -> 0.023 | U54: 0.023 | V54: =W54 -> 0.014 | W54: 0.014
C56: Crash Modification Factors | H56: F+I | K56: PDO | V56: F+I coefficients | Y56: PDO coefficients
H57: Multiple | I57: Single | K57: Multiple | L57: Single | S57: Value | T57: Base | V57: Multiple | W57: Single | Y57: Multiple | Z57: Single
C58: Lane width | H58: =EXP(V58*($S58-$T58)) -> 1.022141565 | I58: =EXP(W58*($S58-$T58)) -> 1.022141565 | K58: =EXP(Y58*($S58-$T58)) -> 1.022141565 | L58: =EXP(Z58*($S58-$T58)) -> 1.022141565 | S58: =H40 -> 11 | T58: 12 | V58: -0.0219 | W58: =V58 -> -0.0219 | Y58: -0.0219 | Z58: =Y58 -> -0.0219
C59: Outside shoulder width | H59: =EXP(V59*($S59-$T59)) -> 1 | I59: =EXP(W59*($S59-$T59)) -> 1 | K59: =EXP(Y59*($S59-$T59)) -> 1 | L59: =EXP(Z59*($S59-$T59)) -> 1 | S59: =H41 -> 1.5 | T59: 1.5 | V59: -0.0285 | W59: =V59 -> -0.0285 | Y59: -0.0285 | Z59: =Y59 -> -0.0285
C60: Median width | H60: =IF(OR($H$27="6D",$H$27="8D"),EXP(V60*($S60-$T60)),1) -> 1.011465228 | I60: =IF(OR($H$27="6D",$H$27="8D"),EXP(W60*($S60-$T60)),1) -> 1.011465228 | K60: =IF(OR($H$27="6D",$H$27="8D"),EXP(Y60*($S60-$T60)),1) -> 1.011465228 | L60: =IF(OR($H$27="6D",$H$27="8D"),EXP(Z60*($S60-$T60)),1) -> 1.011465228 | S60: =H42 -> 13 | T60: 15 | V60: -0.0057 | W60: -0.0057 | Y60: -0.0057 | Z60: -0.0057
C61: Median barrier | H61: =IF(OR($H$27="6U",$H$27="7T"),1,EXP(V61*$S61)) -> 0.6001353895 | I61: =IF(OR($H$27="6U",$H$27="7T"),1,EXP(W61*$S61)) -> 1.967177944 | K61: =IF(OR($H$27="6U",$H$27="7T"),1,EXP(Y61*$S61)) -> 0.6001353895 | L61: =IF(OR($H$27="6U",$H$27="7T"),1,EXP(Z61*$S61)) -> 1.967177944 | S61: =IF(H43="Yes",1,0) -> 1 | V61: -0.5106 | W61: 0.6766 | Y61: -0.5106 | Z61: 0.6766
C62: Highway-rail grade crossing | H62: =EXP(V62*$S62) -> 1 | I62: =EXP(W62*$S62) -> 1 | K62: =EXP(Y62*$S62) -> 1 | L62: =EXP(Z62*$S62) -> 1 | S62: =H30/H28 -> 0 | T62: 0 | V62: 0.0388 | W62: 0.0388 | Y62: 0.0388 | Z62: =Y62 -> 0.0388
C63: Major commercial driveways | H63: =EXP(V63*($S63-$T63)) -> 1.576173383 | K63: =EXP(Y63*($S63-$T63)) -> 1.576173383 | S63: =H35/H28 -> 15 | T63: 2 | V63: 0.035 | Y63: 0.035
C64: Major industrial driveways | H64: 1.016179493 | K64: 1.016179493 | S64: =H36/H28 -> 2.5 | T64: 1 | V64: 0.0107 | Y64: 0.0107
C65: Minor driveways | H65: 1.04133131 | K65: 1.04133131 | S65: =H37/H28 -> 17.5 | T65: 10 | V65: 0.0054 | Y65: 0.0054
C66: Automated speed enforcement | H66: =IF($S66=0,1,V66) -> 1 | I66: =IF($S66=0,1,W66) -> 1 | K66: =IF($S66=0,1,Y66) -> 1 | L66: =IF($S66=0,1,Z66) -> 1 | S66: =IF(H32="Yes",1,0) -> 0 | T66: 0 | V66: 0.83 | W66: 0.83 | Y66: 1 | Z66: 1
C67: Roadside fixed objects | I67: =1+0.01*$H46/$H28/EXP(W67*$S67) -> 1.179872377 | L67: =1+0.01*$H46/$H28/EXP(Z67*$S67) -> 1.179872377 | S67: =H47 -> 7 | W67: 0.131 | Z67: 0.131

Sheet One-way segments
C3: Safety Prediction Worksheet for One-Way Urban and Suburban Arterial Segments
C5: General Information | I5: Site Information
C7: Analyst | D7: MPP | I7: Street number | K7: SH 1 | T7: Intercept | V7: AADT coefficient | Y7: Intercept
C8: Agency | D8: TTI | I8: Street name | K8: Main Street | T8: F+I | U8: PDO | V8: F+I | W8: PDO | Y8: Segment type | Z8: Multiple,F+I | AA8: Single,F+I | AB8: Multiple,PDO | AC8: Single,PDO
C9: Date | D9: =TODAY() -> 2015-12-09 | I9: Segment number | K9: 1 | S9: Multiple | T9: =VLOOKUP($H$27,$Y$8:$AC$11,MATCH($S9&","&T$8,$Y$8:$AC$8,0),FALSE) -> -11.49 | U9: =VLOOKUP($H$27,$Y$8:$AC$11,MATCH($S9&","&U$8,$Y$8:$AC$8,0),FALSE) -> -8.27 | V9: 1.26 | W9: 1.02 | Y9: 2O | Z9: -11.48 | AA9: -5.32 | AB9: -8.26 | AC9: -4.71
C10: Location | D10: City of Fillmore | I10: Analysis year | K10: 2011 | S10: Single | T10: =VLOOKUP($H$27,$Y$8:$AC$11,MATCH($S10&","&T$8,$Y$8:$AC$8,0),FALSE) -> -4.93 | U10: =VLOOKUP($H$27,$Y$8:$AC$11,MATCH($S10&","&U$8,$Y$8:$AC$8,0),FALSE) -> -4.72 | V10: 0.42 | W10: 0.43 | Y10: 3O | Z10: -11.49 | AA10: -4.93 | AB10: -8.27 | AC10: -4.72
Y11: 4O | Z11: -11.74 | AA11: -4.93 | AB11: -8.68 | AC11: -4.72
T12: K+A | U12: B
S13: Constant | T13: 0.2933 | U13: -0.381
C14: Output Summary | F14: Predicted crash frequency, crashes / year | L14: Combined CMF | S14: Lane | T14: -0.1226 | U14: 0
F15: F+I | G15: PDO | H15: Total | L15: F+I | M15: PDO | S15: R Shld | T15: -0.126 | U15: -0.05755
E16: Total crashes | F16: =SUM(F17:F20) -> 1.638255093 | G16: =SUM(G17:G18) -> 3.294695492 | H16: =F16+G16 -> 4.932950585 | K16: Multiple-vehicle crashes | L16: =PRODUCT(H60:H66) -> 1.370053787 | M16: =PRODUCT(K60:K66) -> 1.370053787 | S16: Area type | T16: -0.3994 | U16: 0
E17: Multiple-vehicle crashes | F17: =$H52*$H$28*EXP(T9+V9*LN($H$30))*L16 -> 1.244462898 | G17: =$H52*$H$28*EXP(U9+W9*LN($H$30))*M16 -> 2.985939839 | K17: Single-vehicle crashes | L17: =PRODUCT(I60:I66) -> 1.296935923 | M17: =PRODUCT(L60:L66) -> 1.296935923 | S17: Bike lane | T17: 0.9969 | U17: 0.504
E18: Single-vehicle crashes | F18: =$H52*$H$28*EXP(T10+V10*LN($H$30))*L17 -> 0.2269774411 | G18: =$H52*$H$28*EXP(U10+W10*LN($H$30))*M17 -> 0.3087556526 | S18: V | T18: =T13+T14*H39+T15*H40+T16*IF($H$26="Urban",1,0)+T17*IF($H$29="Yes",1,0) -> -1.2443 | U18: =U13+U14*H39+U15*H40+U16*IF($H$26="Urban",1,0)+U17*IF($H$29="Yes",1,0) -> -0.467325
E19: Vehicle-pedestrian crashes | F19: =SUM(F17:G18)*$H53 -> 0.1143872599 | J19: Severity distribution for F+I crashes | S19: P | T19: =EXP(T18)/(1/$H55+EXP($T18)+EXP($U18)) -> 0.1504803058 | U19: =EXP(U18)/(1/$H55+EXP($T18)+EXP($U18)) -> 0.3272771014
E20: Vehicle-bicycle crashes | F20: =SUM(F17:G18)*$H54 -> 0.05242749414 | J20: K | K20: A | L20: B | M20: C
J21: =F16*T19*H56 -> 0.02440598761 | K21: =F16*T19*(1-H56) -> 0.2221191398 | L21: =F16*U19 -> 0.5361633783 | M21: =F16*(1-SUM(T19:U19)) -> 0.8555665875
C23: Input Data | H23: Value | J23: Advisory Messages
C25: Basic Roadway Data | S25: Minimum | T25: Maximum | V25: Segment type | W25: Minimum | X25: Maximum
C26: Area type | H26: Suburban | J26: . | V26: 2O | W26: 0 | X26: 34000
C27: Segment type | H27: 3O | J27: . | V27: 3O | W27: 0 | X27: 29000
C28: Segment length, mi | H28: 0.4 | J28: . | V28: 4O | W28: 0 | X28: 29000
C29: Bicycle lanes present? | H29: No | J29: .
C30: Annual average daily traffic (AADT), veh/day | H30: 17500 | I30: =IF(OR(H30<S30,H30>T30),"Check","") ->  | J30: . | S30: =VLOOKUP($H$27,$V$25:$X$28,MATCH(S$25,$V$25:$X$25,0),FALSE) -> 0 | T30: =VLOOKUP($H$27,$V$25:$X$28,MATCH(T$25,$V$25:$X$25,0),FALSE) -> 29000
C31: Posted speed limit, mi/h | H31: 30 | J31: .
C32: Automated speed enforcement present? | H32: No | J32: .
C34: Access Data
C35: Driveway count | E35: Major commercial | H35: 6 | I35: =IF(OR(H35<S35,H35>T35),"Check","") ->  | J35: =IF(H35>0,ROUND(H35/H$28,0)&" major comm. driveways per mile.",".") -> 15 major comm. driveways per mile. | S35: 0 | T35: =58.3*H28 -> 23.32
E36: Minor | H36: 7 | J36: =IF(H36>0,ROUND(H36/H$28,0)&" minor driveways per mile.",".") -> 18 minor driveways per mile. | S36: 0 | T36: =100*H28 -> 40
C38: Cross Section Data
C39: Lane width, ft | H39: 11 | I39: =IF(OR(H39<S39,H39>T39),"Check","") ->  | J39: . | S39: 9 | T39: 27
C40: Right shoulder width, ft | H40: 1.5 | J40: . | S40: 0 | T40: 20
C42: Roadside Data
C43: On-street parallel parking length on right side, mi | H43: 0 | I43: =IF(OR(H43<S43,H43>T43),"Check","") ->  | J43: =IF(H$43+H$44>2*H$28,"Right-side park length > segment length.",".") -> . | S43: 0 | T43: =H28 -> 0.4
C44: On-street angle parking length on right side, mi | H44: 0 | J44: =IF(H27="4O","Effect not known for 4O segments.",IF(H$43+H$44>2*H$28,"Right-side park length > segment length.",".")) -> . | S44: 0 | T44: =H28 -> 0.4
C45: On-street parallel parking length on left side, mi | H45: 0 | I45: =IF(OR(H45<S45,H45>T45),"Check","") ->  | J45: =IF(H$45+H$46>2*H$28,"Left-side park length > segment length.",".") -> . | S45: 0 | T45: =H28 -> 0.4
C46: On-street angle parking length on left side, mi | H46: 0 | J46: =IF(H29="4O","Effect not known for 4O segments.",IF(H$45+H$46>2*H$28,"Left-side park length > segment length.",".")) -> . | S46: 0 | T46: =H28 -> 0.4
C47: Roadside fixed object count | H47: 18 | J47: =IF(H47>0,ROUND(H47/H28,0)&" objects per mile.",".") -> 45 objects per mile. | S47: 0 | T47: =300*H28 -> 120
C48: Average roadside fixed object offset, ft | H48: 7 | J48: . | S48: 0 | T48: =IF($H$27="4O",25,30) -> 30
C50: Calibration Factors | H50: Value | K50: Default Values
C52: Local calibration factor (C) | H52: =K52 -> 1 | K52: 1 | S52: Segment type | T52: fped, ≤ 30 mph | U52: fped, ≥ 35 mph | V52: fbike, ≤ 30 mph | W52: fbike, ≥ 35 mph
C53: Adjustment factor for pedestrians (fped) | H53: 0.024 | K53: =VLOOKUP($H$27,$S$53:$W$55,IF($H$31<=30,2,3),FALSE) -> 0.024 | S53: 2O | T53: 0.017 | U53: 0.018 | V53: 0.011 | W53: 0.016
C54: Adjustment factor for bicyclists (fbike) | H54: 0.011 | K54: =VLOOKUP($H$27,$S$53:$W$55,IF($H$31<=30,4,5),FALSE) -> 0.011 | S54: 3O | T54: 0.024 | U54: 0.017 | V54: 0.011 | W54: 0.012
C55: Severity distribution calibration factor (Csdf,ows) | H55: 1 | K55: 1 | S55: 4O | T55: 0.021 | U55: 0.03 | V55: 0.021 | W55: 0.007
C56: Probability of fatality given K+A severity (PK|K+A) | H56: 0.099 | K56: 0.099
C58: Crash Modification Factors | H58: F+I | K58: PDO | V58: F+I coefficients | Y58: PDO coefficients
H59: Multiple | I59: Single | K59: Multiple | L59: Single | S59: Value | T59: Base | V59: Multiple | W59: Single | Y59: Multiple | Z59: Single | AB59: Parallel parking CMF coefficients
C60: Right shoulder width | H60: =EXP(V60*($S60-$T60)) -> 1.051533947 | I60: =EXP(W60*($S60-$T60)) -> 1.051533947 | K60: =EXP(Y60*($S60-$T60)) -> 1.051533947 | L60: =EXP(Z60*($S60-$T60)) -> 1.051533947 | S60: =H40 -> 1.5 | T60: 4 | V60: -0.0201 | W60: =V60 -> -0.0201 | Y60: -0.0201 | Z60: =Y60 -> -0.0201 | AB60: Segment type | AC60: F+I coefficients | AD60: PDO coefficients
C61: On-street parallel parking | H61: =1+$S61*(V61-1) -> 1 | I61: =1+$S61*(W61-1) -> 1 | K61: =1+$S61*(Y61-1) -> 1 | L61: =1+$S61*(Z61-1) -> 1 | S61: =(H43+H45)/2/H28 -> 0 | V61: =VLOOKUP($H$27,$AB$60:$AD$63,MATCH(V$58,$AB$60:$AD$60,0),FALSE) -> 1.359 | W61: =VLOOKUP($H$27,$AB$60:$AD$63,MATCH(V$58,$AB$60:$AD$60,0),FALSE) -> 1.359 | Y61: =VLOOKUP($H$27,$AB$60:$AD$63,MATCH(Y$58,$AB$60:$AD$60,0),FALSE) -> 1.359 | Z61: =VLOOKUP($H$27,$AB$60:$AD$63,MATCH(Y$58,$AB$60:$AD$60,0),FALSE) -> 1.359 | AB61: 2O | AC61: 1.112 | AD61: 1.112
C62: On-street angle parking | H62: =IF($H$27="4O",1,1+$S62*(V62-1)) -> 1 | I62: =IF($H$27="4O",1,1+$S62*(W62-1)) -> 1 | K62: =IF($H$27="4O",1,1+$S62*(Y62-1)) -> 1 | L62: =IF($H$27="4O",1,1+$S62*(Z62-1)) -> 1 | S62: =(H44+H46)/2/H28 -> 0 | V62: 4.364 | W62: 4.364 | Y62: 4.364 | Z62: 4.364 | AB62: 3O | AC62: 1.359 | AD62: 1.359
C63: Major commercial driveways | H63: =EXP(V63*($S63-$T63)) -> 1.258725876 | K63: =EXP(Y63*($S63-$T63)) -> 1.258725876 | S63: =H35/H28 -> 15 | T63: 2 | V63: 0.0177 | Y63: 0.0177 | AB63: 4O | AC63: 1.359 | AD63: 1.359
C64: Minor driveways | H64: =EXP(V64*($S64-$T64)) -> 1.035102028 | K64: =EXP(Y64*($S64-$T64)) -> 1.035102028 | S64: =H36/H28 -> 17.5 | T64: 10 | V64: 0.0046 | Y64: 0.0046
C65: Automated speed enforcement | H65: =IF($S65=0,1,V65) -> 1 | I65: =IF($S65=0,1,W65) -> 1 | K65: =IF($S65=0,1,Y65) -> 1 | L65: =IF($S65=0,1,Z65) -> 1 | S65: =IF(H32="Yes",1,0) -> 0 | T65: 0 | V65: 0.83 | W65: 0.83 | Y65: 1 | Z65: 1
C66: Roadside fixed objects | I66: =1+0.01*$H47/$H28/EXP(W66*$S66) -> 1.233375229 | L66: =1+0.01*$H47/$H28/EXP(Z66*$S66) -> 1.233375229 | S66: =H48 -> 7 | W66: 0.0938 | Z66: 0.0938

Sheet Intersections
C3: Safety Prediction Worksheet for Urban and Suburban Arterial Intersections
C5: General Information | I5: Site Information | S5: =Y23&","&T$7 -> 2x2,F+I | T5: =Y23&","&U$7 -> 2x2,PDO
C7: Analyst | D7: MPP | I7: Major street name | K7: Main Street | S7: =H27&IF(H28="Signalized","SG","ST") -> 4SG | T7: F+I | U7: PDO | X7: 3SG | Y7: 4SG | AB7: Coefficients by intersection type | AJ7: K+A | AK7: Two-way Signalized | AL7: One-way Signalized | AM7: Two-way stop | AO7: B | AP7: Two-way Signalized | AQ7: One-way Signalized | AR7: Two-way stop | AT7: Max AADTs | AU7: Major | AV7: Minor
C8: Agency | D8: TTI | I8: Minor street name | K8: Cross Street | S8: Intercept | T8: =VLOOKUP($S$7,$AB$8:$AF$12,MATCH($S$5,$AB$8:$AF$8,0),FALSE) -> -4.63 | U8: =VLOOKUP($S$7,$AB$8:$AH$12,MATCH($T$5,$AB$8:$AH$8,0),FALSE) -> -3.77 | W8: Intercept | X8: -6.6 | Y8: -9.53 | Z8: =VLOOKUP(W8,$W$7:$Y$12,MATCH($S$7,$W$7:$Y$7,0),FALSE) -> -9.53 | AB8: Intercept | AC8: 2x2,F+I | AD8: 1x2,F+I | AE8: 1x1,F+I | AF8: 2x2,PDO | AG8: 1x2,PDO | AH8: 1x1,PDO | AJ8: Constant | AK8: -1.767 | AL8: -2.042 | AM8: -1.106 | AO8: Constant | AP8: -0.725 | AQ8: -0.741 | AR8: -0.361 | AT8: 2x2,3ST | AU8: 66800 | AV8: 8600
C9: Date | D9: =TODAY() -> 2015-12-09 | I9: Intersection number | K9: 1 | S9: Major AADT | T9: =VLOOKUP($S$7,$AB$13:$AF$17,MATCH($S$5,$AB$13:$AF$13,0),FALSE) -> 0.36 | U9: =VLOOKUP($S$7,$AB$13:$AH$17,MATCH($T$5,$AB$13:$AH$13,0),FALSE) -> 0.27 | W9: Total AADT | X9: 0.05 | Y9: 0.4 | Z9: =VLOOKUP(W9,$W$7:$Y$12,MATCH($S$7,$W$7:$Y$7,0),FALSE) -> 0.4 | AB9: 3ST | AC9: -15.03 | AD9: -9.12 | AE9: -9.22 | AF9: -14.97 | AG9: -17.6 | AH9: -17.99 | AJ9: Area type | AK9: -0.116 | AL9: -0.407 | AM9: -0.382 | AO9: Area type | AP9: -0.116 | AQ9: -0.099 | AR9: -0.278 | AT9: 2x2,4ST | AU9: 54600 | AV9: 4600
C10: Location | D10: City of Fillmore | I10: Analysis year | K10: 2011 | S10: Minor AADT | T10: =VLOOKUP($S$7,$AB$18:$AF$22,MATCH($S$5,$AB$18:$AF$18,0),FALSE) -> 0.27 | U10: =VLOOKUP($S$7,$AB$18:$AH$22,MATCH($T$5,$AB$18:$AH$18,0),FALSE) -> 0.27 | W10: AADT ratio | X10: 0.24 | Y10: 0.26 | Z10: 0.26 | AB10: 3SG | AC10: -7.11 | AD10: -11.21 | AE10: -11.31 | AF10: -5.07 | AG10: -7.07 | AH10: -7.46 | AJ10: RTOR | AK10: -1.166 | AO10: RTOR | AP10: -1.074 | AT10: 2x2,3SG | AU10: 94000 | AV10: 31000
S11: SPF | T11: =$H50*EXP(T8+T9*LN($H40)+T10*LN($I40)) -> 4.145599538 | U11: =$H50*EXP(U8+U9*LN($H40)+U10*LN($I40)) -> 4.017796185 | W11: PedVol | X11: 0.41 | Y11: 0.45 | Z11: 0.45 | AB11: 4ST | AC11: -10.08 | AD11: -10.83 | AE11: -10.93 | AF11: -12.01 | AG11: -12.06 | AH11: -12.46 | AJ11: U-turn | AK11: -0.142 | AO11: U-turn | AP11: -0.069 | AT11: 2x2,4SG | AU11: 137600 | AV11: 68400
S12: =IF(H28="Two-way stop",H28,H39&" "&H28) -> Two-way Signalized | T12: K+A | U12: B | W12: Lanes | X12: 0.09 | Y12: 0.04 | Z12: 0.04 | AB12: 4SG | AC12: -4.63 | AD12: -5.47 | AE12: -5.57 | AF12: -3.77 | AG12: -5.92 | AH12: -6.31 | AJ12: Major LT | AK12: -0.178 | AL12: -0.296 | AO12: Major LT | AP12: -0.108 | AQ12: -0.255 | AT12: 1x2,3ST | AU12: 42700 | AV12: 13400
S13: Constant | T13: =VLOOKUP($S13,$AJ$7:$AM$16,MATCH($S$12,$AJ$7:$AM$7,0),FALSE) -> -1.767 | U13: =VLOOKUP($S13,$AO$7:$AR$16,MATCH($S$12,$AO$7:$AR$7,0),FALSE) -> -0.725 | W13: Npedbase | AB13: Major AADT | AC13: 2x2,F+I | AD13: 1x2,F+I | AE13: 1x1,F+I | AF13: 2x2,PDO | AG13: 1x2,PDO | AH13: 1x1,PDO | AJ13: Lighting | AK13: -0.331 | AM13: -0.918 | AO13: Lighting | AR13: -0.397 | AT13: 1x2,4ST | AU13: 23400 | AV13: 19200
C14: Output Summary | F14: Predicted crash frequency, crashes / year | L14: Combined CMF | S14: Area type | T14: -0.116 | U14: -0.116 | AB14: 3ST | AC14: 1.09 | AD14: 0.65 | AE14: 0.65 | AF14: 1.35 | AG14: 1.53 | AH14: 1.53 | AJ14: Minor LT | AO14: Minor LT | AR14: -0.434 | AT14: 1x2,3SG | AU14: 43800 | AV14: 58800
F15: F+I | G15: PDO | H15: Total | L15: F+I | M15: PDO | S15: RTOR | T15: -1.166 | U15: -1.074 | AB15: 3SG | AC15: 0.65 | AD15: 0.59 | AE15: 0.59 | AF15: 0.47 | AG15: 0.49 | AH15: 0.49 | AJ15: Minor RT channel | AL15: -0.306 | AO15: Minor RT channel | AQ15: -0.504 | AT15: 1x2,4SG | AU15: 77000 | AV15: 98900
E16: Total crashes | F16: =SUM(F17:F19) -> 3.063605789 | G16: =G17 -> 2.773748251 | H16: =F16+G16 -> 5.83735404 | K16: Total-vehicle crashes | L16: =PRODUCT(H69:H75) -> 0.6903655943 | M16: =PRODUCT(K69:K75) -> 0.6903655943 | S16: U-turn | T16: -0.142 | U16: -0.069 | AB16: 4ST | AC16: 0.58 | AD16: 0.67 | AE16: 0.67 | AF16: 0.67 | AG16: 0.86 | AH16: 0.86 | AJ16: Major RT channel | AO16: Major RT channel | AQ16: 0.557 | AT16: 1x1,3ST | AU16: 16900 | AV16: 11100
E17: Total-vehicle crashes | F17: =T11*L16 -> 2.861979289 | G17: =U11*M16 -> 2.773748251 | K17: Vehicle-pedestrian crashes | L17: =PRODUCT(H78:H80) -> 1 | S17: Major LT | T17: -0.178 | U17: -0.108 | AB17: 4SG | AC17: 0.36 | AD17: 0.18 | AE17: 0.18 | AF17: 0.27 | AG17: 0.38 | AH17: 0.38 | AT17: 1x1,4ST | AU17: 11000 | AV17: 6800
E18: Vehicle-pedestrian crashes | F18: =IF(H28="Signalized",EXP(Z8+Z9*LN(H40+I40)+Z10*LN(MIN(H40:I40)/MAX(H40:I40))+Z11*LN(H31)+Z12*H32)*L17,(F17+G17)*H51) -> 0.09454767712 | S18: Lighting | T18: -0.331 | U18: 0 | AB18: Minor AADT | AC18: 2x2,F+I | AD18: 1x2,F+I | AE18: 1x1,F+I | AF18: 2x2,PDO | AG18: 1x2,PDO | AH18: 1x1,PDO | AT18: 1x1,3SG | AU18: 20100 | AV18: 7500
E19: Vehicle-bicycle crashes | F19: =(F17+G17)*H52 -> 0.1070788232 | J19: Severity distribution for F+I crashes | S19: Minor LT | T19: 0 | U19: 0 | AB19: 3ST | AC19: 0.53 | AD19: 0.11 | AE19: 0.11 | AF19: 0.15 | AG19: 0.31 | AH19: 0.31 | AT19: 1x1,4SG | AU19: 24300 | AV19: 16900
J20: K | K20: A | L20: B | M20: C | S20: Minor RT channel | T20: 0 | U20: 0 | AB20: 3SG | AC20: 0.16 | AD20: 0.56 | AE20: 0.56 | AF20: 0.14 | AG20: 0.35 | AH20: 0.35
J21: =F16*T23*H55 -> 0.01547761649 | K21: =F16*T23*(1-H55) -> 0.1491778781 | L21: =F16*U23 -> 0.7475905086 | M21: =F16*(1-SUM(T23:U23)) -> 2.151359786 | S21: Major RT channel | T21: 0 | U21: 0 | AB21: 4ST | AC21: 0.6 | AD21: 0.41 | AE21: 0.41 | AF21: 0.75 | AG21: 0.51 | AH21: 0.51
S22: V | T22: =T13+IF($H26="Urban",1,0)*T14+IF(SUM($H44:$I44)=H27,1,0)*T15+H45*T16+$H42*T17+IF($H29="Yes",1,0)*T18+$I42*T19+IF($I46>0,1,0)*T20+$H46*T21 -> -2.57 | U22: =U13+IF($H26="Urban",1,0)*U14+IF(SUM($H44:$I44)=H27,1,0)*U15+H45*U16+$H42*U17+IF($H29="Yes",1,0)*U18+$I42*U19+IF($I46>0,1,0)*U20+$H46*U21 -> -1.057 | W22: Major config | X22: Minor config | Y22: Config | Z22: Check | AB22: 4SG | AC22: 0.27 | AD22: 0.37 | AE22: 0.37 | AF22: 0.27 | AG22: 0.36 | AH22: 0.36
C23: Input Data | H23: Value | J23: Advisory Messages | S23: P | T23: =EXP(T22)/(1/$H53+EXP($T22)+EXP($U22)) -> 0.05374565331 | U23: =EXP(U22)/(1/$H53+EXP($T22)+EXP($U22)) -> 0.2440230761 | W23: =IF(H39="Two-way",2,1) -> 2 | X23: =IF(I39="Two-way",2,1) -> 2 | Y23: =W23&"x"&X23 -> 2x2 | Z23: =VLOOKUP(I41,S27:AA35,MATCH(H41,S27:AA27,0),FALSE) -> 1
C25: Intersection Data
C26: Area type | H26: Urban | J26: . | S26: Check values | T26: Major | AC26: 2x2 | AD26: Major | AM26: 1x2 | AN26: Major | AW26: 1x1 | AX26: Major
C27: Number of legs | H27: 4 | J27: =S7& " intersection type" -> 4SG intersection type | S27: Minor | T27: 1 | U27: 2 | V27: 3 | W27: 4 | X27: 5 | Y27: 6 | Z27: 7 | AA27: 8 | AC27: Minor | AD27: 1 | AE27: 2 | AF27: 3 | AG27: 4 | AH27: 5 | AI27: 6 | AJ27: 7 | AK27: 8 | AM27: Minor | AN27: 1 | AO27: 2 | AP27: 3 | AQ27: 4 | AR27: 5 | AS27: 6 | AT27: 7 | AU27: 8 | AW27: Minor | AX27: 1 | AY27: 2 | AZ27: 3 | BA27: 4 | BB27: 5 | BC27: 6 | BD27: 7 | BE27: 8
C28: Traffic control type | H28: Signalized | J28: . | S28: 1 | T28: =IF($Y$23="2x2",AD28,IF($Y$23="1x2",AN28,AX28)) -> 0 | U28: 0 | V28: 0 | W28: 0 | X28: 0 | Y28: 0 | Z28: 0 | AA28: 0 | AC28: 1 | AD28: 0 | AE28: 0 | AF28: 0 | AG28: 0 | AH28: 0 | AI28: 0 | AJ28: 0 | AK28: 0 | AM28: 1 | AN28: 0 | AO28: 0 | AP28: 0 | AQ28: 0 | AR28: 0 | AS28: 0 | AT28: 0 | AU28: 0 | AW28: 1 | AX28: 0 | AY28: 0 | AZ28: 0 | BA28: 0 | BB28: 0 | BC28: 0 | BD28: 0 | BE28: 0
C29: Lighting present? | H29: Yes | J29: . | S29: 2 | T29: 0 | U29: 0 | V29: 0 | W29: 0 | X29: 0 | Y29: 1 | Z29: 0 | AA29: 1 | AC29: 2 | AD29: 0 | AE29: 0 | AF29: 0 | AG29: 0 | AH29: 0 | AI29: 1 | AJ29: 0 | AK29: 1 | AM29: 2 | AN29: 0 | AO29: 1 | AP29: 1 | AQ29: 1 | AR29: 0 | AS29: 0 | AT29: 0 | AU29: 0 | AW29: 2 | AX29: 0 | AY29: 1 | AZ29: 1 | BA29: 1 | BB29: 0 | BC29: 0 | BD29: 0 | BE29: 0
C30: Red-light cameras present? | H30: No | J30: . | S30: 3 | T30: 0 | U30: 0 | V30: 0 | W30: 0 | X30: 0 | Y30: 0 | Z30: 0 | AA30: 0 | AC30: 3 | AD30: 0 | AE30: 0 | AF30: 0 | AG30: 0 | AH30: 0 | AI30: 0 | AJ30: 0 | AK30: 0 | AM30: 3 | AN30: 0 | AO30: 0 | AP30: 0 | AQ30: 0 | AR30: 0 | AS30: 0 | AT30: 0 | AU30: 0 | AW30: 3 | AX30: 0 | AY30: 1 | AZ30: 1 | BA30: 1 | BB30: 0 | BC30: 0 | BD30: 0 | BE30: 0
C31: Daily pedestrian volume crossing all legs (peds/day) | H31: 700 | J31: . | S31: 4 | T31: 0 | U31: 0 | V31: 0 | W31: 0 | X31: 0 | Y31: 1 | Z31: 0 | AA31: 1 | AC31: 4 | AD31: 0 | AE31: 0 | AF31: 0 | AG31: 0 | AH31: 0 | AI31: 1 | AJ31: 0 | AK31: 1 | AM31: 4 | AN31: 0 | AO31: 1 | AP31: 1 | AQ31: 1 | AR31: 0 | AS31: 0 | AT31: 0 | AU31: 0 | AW31: 4 | AX31: 0 | AY31: 1 | AZ31: 1 | BA31: 1 | BB31: 0 | BC31: 0 | BD31: 0 | BE31: 0
C32: Maximum number of lanes crossed by a pedestrian | H32: 7 | J32: . | S32: 5 | T32: 0 | U32: 0 | V32: 0 | W32: 0 | X32: 0 | Y32: 0 | Z32: 0 | AA32: 0 | AC32: 5 | AD32: 0 | AE32: 0 | AF32: 0 | AG32: 0 | AH32: 0 | AI32: 0 | AJ32: 0 | AK32: 0 | AM32: 5 | AN32: 0 | AO32: 0 | AP32: 0 | AQ32: 0 | AR32: 0 | AS32: 0 | AT32: 0 | AU32: 0 | AW32: 5 | AX32: 0 | AY32: 0 | AZ32: 0 | BA32: 0 | BB32: 0 | BC32: 0 | BD32: 0 | BE32: 0
C33: Number of bus stops within 1,000 ft of intersection | H33: 0 | J33: . | S33: 6 | T33: 0 | U33: 0 | V33: 0 | W33: 1 | X33: 0 | Y33: 1 | Z33: 0 | AA33: 1 | AC33: 6 | AD33: 0 | AE33: 0 | AF33: 0 | AG33: 1 | AH33: 0 | AI33: 1 | AJ33: 0 | AK33: 1 | AM33: 6 | AN33: 0 | AO33: 1 | AP33: 1 | AQ33: 1 | AR33: 0 | AS33: 0 | AT33: 0 | AU33: 0 | AW33: 6 | AX33: 0 | AY33: 0 | AZ33: 0 | BA33: 0 | BB33: 0 | BC33: 0 | BD33: 0 | BE33: 0
C34: School(s) present within 1,000 ft of intersection? | H34: No | J34: . | S34: 7 | T34: 0 | U34: 0 | V34: 0 | W34: 0 | X34: 0 | Y34: 0 | Z34: 0 | AA34: 0 | AC34: 7 | AD34: 0 | AE34: 0 | AF34: 0 | AG34: 0 | AH34: 0 | AI34: 0 | AJ34: 0 | AK34: 0 | AM34: 7 | AN34: 0 | AO34: 0 | AP34: 0 | AQ34: 0 | AR34: 0 | AS34: 0 | AT34: 0 | AU34: 0 | AW34: 7 | AX34: 0 | AY34: 0 | AZ34: 0 | BA34: 0 | BB34: 0 | BC34: 0 | BD34: 0 | BE34: 0
C35: Alcohol sales establishments within 1,000 ft | H35: 0 | J35: . | S35: 8 | T35: 0 | U35: 1 | V35: 0 | W35: 1 | X35: 0 | Y35: 1 | Z35: 0 | AA35: 1 | AC35: 8 | AD35: 0 | AE35: 1 | AF35: 0 | AG35: 1 | AH35: 0 | AI35: 1 | AJ35: 0 | AK35: 1 | AM35: 8 | AN35: 0 | AO35: 1 | AP35: 1 | AQ35: 1 | AR35: 0 | AS35: 0 | AT35: 0 | AU35: 0 | AW35: 8 | AX35: 0 | AY35: 0 | AZ35: 0 | BA35: 0 | BB35: 0 | BC35: 0 | BD35: 0 | BE35: 0
C37: Street Data | H37: Major | I37: Minor | J37: =IF(AND(OR(H31>V45,MAX(H40:I40)>MAX(T45:U45),MIN(H40:I40)>MIN(T45:U45)),H28="Signalized"),"Beyond range of veh-ped crash model", ".") -> . | S37: Major | V37: Minor
C39: Street configuration | H39: Two-way | I39: Two-way | J39: =IF(AND(H39="Two-way",I39="One-way"), "Major street must be one-way.",Y23&" intersection configuration") -> 2x2 intersection configuration | S39: Minimum | T39: Maximum | U39: Check | V39: Minimum | W39: Maximum | X39: Check
C40: Annual average daily traffic (AADT), veh/day | H40: 20000 | I40: 10000 | J40: =IF(AND(OR(Y23="1x1",Y23="2x2"),H40<I40),"Major AADT must exceed minor AADT.",IF(U40=0,"Check major" & IF(X40=0," & minor volume.", " volume."),IF(X40=0,"Check minor volume.","."))) -> . | S40: 0 | T40: =VLOOKUP(Y23&","&S7,AT8:AV19,2,FALSE) -> 137600 | U40: =IF(AND(H40>S40,H40<T40),1,0) -> 1 | V40: 0 | W40: =VLOOKUP(Y23&","&S7,AT8:AV19,3,FALSE) -> 68400 | X40: =IF(AND(I40>V40,I40<W40),1,0) -> 1
C41: Number of through lanes | H41: 6 | I41: 4 | J41: =IF(Z23=0,"Invalid lane count combination.",".") -> .
C42: Number of approaches with left-turn lanes | H42: 2 | I42: 2 | J42: =IF(OR(AND(W23=1,H42=2),AND(X23=1,I42=2)),"Can only have one left-turn lane.",".") -> . | S42: Ped max values | T42: Major | U42: Minor | V42: PedVol
C43: Number of left-turn movements with protected phasing | H43: 2 | I43: 0 | J43: =IF(AND(Y23="1x1",H43>0,I43>0),"Can only have one left-turn movement.",".") -> . | S43: 3SG | T43: 74300 | U43: 51500 | V43: 34200
C44: Number of right-turn movements prohibited on red | H44: 2 | I44: 0 | J44: =IF(AND(Y23="1x1",H44>0,I44>0),"Can only have one right-turn movement.",".") -> . | S44: 4SG | T44: 80200 | U44: 49100 | V44: 12600
C45: Number of U-turn movements prohibited | H45: 0 | I45: 2 | J45: . | S45: Value | T45: =VLOOKUP($S7,$S43:$V44,2,FALSE) -> 80200 | U45: =VLOOKUP($S7,$S43:$V44,3,FALSE) -> 49100 | V45: =VLOOKUP($S7,$S43:$V44,4,FALSE) -> 12600
C46: Number of approaches with right-turn channelization | H46: 0 | I46: 2 | J46: =IF(AND(Y23="1x1",H46>0, I46>0),"Can only have one right-turn movement.",".") -> .
C48: Calibration Factors | H48: Value | K48: Default Values
C50: Local calibration factor (C) | H50: =K50 -> 1 | K50: 1 | S50: Configuration | T50: PK|K+A | V50: fped for ST | W50: 3 | X50: 4 | Z50: fbike | AA50: Two-way | AB50: One-way
C51: Adjustment factor for pedestrians for stop control (fped) | H51: 0.049 | K51: =VLOOKUP(H39,V50:X52,MATCH(H27,V50:X50,0),FALSE) -> 0.049 | S51: Two-way Signalized | T51: 0.094 | V51: Two-way | W51: 0.051 | X51: 0.049 | Z51: 3ST | AA51: 0.048 | AB51: 0.018
C52: Adjustment factor for bicyclists (fbike) | H52: 0.019 | K52: =VLOOKUP(S7,Z50:AB54,MATCH(H39,Z50:AB50,0),FALSE) -> 0.019 | S52: One-way Signalized | T52: 0.046 | V52: One-way | W52: 0.015 | X52: 0.02 | Z52: 3SG | AA52: 0.029 | AB52: 0.016
C53: Severity distribution calibration factor, 2-way (Csdf,twi) | H53: 1 | K53: 1 | S53: Two-way stop | T53: 0.043 | Z53: 4ST | AA53: 0.039 | AB53: 0.022
C54: Severity distribution calibration factor, 1-way (Csdf,owi) | H54: 1 | K54: 1 | Z54: 4SG | AA54: 0.019 | AB54: 0.012
C55: Probability of fatality given K+A severity (PK|K+A) | H55: 0.094 | K55: =VLOOKUP(S12,S51:T53,2,FALSE) -> 0.094
F57: Manner of Collision Proportions
C58: 2x2 intersections | F58: 3ST, F+I | G58: 3ST, PDO | H58: 3SG, F+I | I58: 3SG, PDO | J58: 4ST, F+I | K58: 4ST, PDO | L58: 4SG, F+I | M58: 4SG, PDO
C59: Rear-end collision proportion | F59: 0.094 | G59: 0.154 | H59: 0.12 | I59: 0.189 | J59: 0.079 | K59: 0.098 | L59: 0.083 | M59: 0.148
C60: Angle colllision proportion | F60: 0.764 | G60: 0.629 | H60: 0.676 | I60: 0.554 | J60: 0.806 | K60: 0.707 | L60: 0.746 | M60: 0.552
C62: 1x2 or 1x1 intersections | F62: 3ST, F+I | G62: 3ST, PDO | H62: 3SG, F+I | I62: 3SG, PDO | J62: 4ST, F+I | K62: 4ST, PDO | L62: 4SG, F+I | M62: 4SG, PDO
C63: Rear-end collision proportion | F63: 0.1 | G63: 0.1 | H63: 0.111 | I63: 0.143 | J63: 0.047 | K63: 0.065 | L63: 0.03 | M63: 0.059
C64: Angle colllision proportion | F64: 0.3 | G64: 0.25 | H64: 0.889 | I64: 0.571 | J64: 0.822 | K64: 0.706 | L64: 0.837 | M64: 0.733
C66: Crash Modification Factors | H66: F+I | K66: PDO
C68: Total-vehicle crash CMFs | S68: Value | T68: F+I | U68: PDO | V68: Two-way,F+I | W68: One-way,F+I | X68: Two-way,PDO | Y68: One-way,PDO | AB68: Proportions | AC68: =VLOOKUP(S7,AB71:AC74,2,FALSE) -> 0.235 | AE68: Street | AF68: Base # | AG68: P | AI68: pra(mv+sv)(FI) | AJ68: =IF(Y23="2x2",HLOOKUP(S7&", F+I", F58:M60,3,FALSE), HLOOKUP(S7&", F+I", F62:M64,3,FALSE)) -> 0.746
C69: Lighting | H69: =1-$T69*$S69*$AC68 -> 0.9107 | K69: =1-$U69*$S69*$AC68 -> 0.9107 | S69: =IF(H29="Yes",1,0) -> 1 | T69: =IF(H$39="Two-way",V69,W69) -> 0.38 | U69: =IF(H$39="Two-way",X69,Y69) -> 0.38 | V69: 0.38 | W69: 0.38 | X69: 0.38 | Y69: 0.38 | AE69: Major | AF69: =IF(W23=2,6,2) -> 6 | AG69: =H40/(H40+I40) -> 0.6666666667 | AI69: pra(mv+sv)(PDO) | AJ69: =IF(Y23="2x2",HLOOKUP(S7&", PDO", F58:M60,3,FALSE), HLOOKUP(S7&", F+I", F62:M64,3,FALSE)) -> 0.552
C70: Red-light cameras | H70: =IF(H30="Yes",1-AJ72*(1-AJ74)-AJ73*(1-AJ75),1) -> 1 | K70: =IF(H30="Yes",1-AJ72*(1-AJ74)-AJ73*(1-AJ75),1) -> 1 | AB70: Configuration | AC70: Lighting | AE70: Minor | AF70: 2 | AG70: =I40/(H40+I40) -> 0.3333333333 | AI70: pre(mv+sv)(FI) | AJ70: =IF(Y23="2x2",HLOOKUP(S7&", F+I", F58:M60,2,FALSE), HLOOKUP(S7&", F+I", F62:M64,2,FALSE)) -> 0.083
C71: Left-turn signal phasing | H71: =IF($H$28="Signalized",$T71^$S71,1) -> 0.7396 | K71: =IF($H$28="Signalized",$U71^$S71,1) -> 0.7396 | S71: =SUM(H43:I43) -> 2 | T71: =IF(H$39="Two-way",V71,W71) -> 0.86 | U71: =IF(H$39="Two-way",X71,Y71) -> 0.86 | V71: 0.86 | W71: 1 | X71: 0.86 | Y71: 1 | AB71: 3ST | AC71: 0.238 | AI71: pre(mv+sv)(PDO) | AJ71: =IF(Y23="2x2",HLOOKUP(S7&", PDO", F58:M60,2,FALSE), HLOOKUP(S7&", F+I", F62:M64,2,FALSE)) -> 0.148
C72: Right-turn-on-red | H72: =IF($H$28="Signalized",$T72^$S72,1) -> 0.9604 | K72: =IF($H$28="Signalized",$U72^$S72,1) -> 0.9604 | S72: =SUM(H44:I44) -> 2 | T72: =IF(H$39="Two-way",V72,W72) -> 0.98 | U72: =IF(H$39="Two-way",X72,Y72) -> 0.98 | V72: 0.98 | W72: 0.98 | X72: 0.98 | Y72: 0.98 | AB72: 3SG | AC72: 0.235 | AI72: pra | AJ72: =(AJ68*T11+AJ69*U11)/(T11+U11) -> 0.6505185991
C73: U-turn prohibition | H73: =IF($H$28="Signalized",$T73^$S73,1) -> 0.9216 | K73: =IF($H$28="Signalized",$U73^$S73,1) -> 0.9216 | S73: =SUM(H45:I45) -> 2 | T73: =IF(H$39="Two-way",V73,W73) -> 0.96 | U73: =IF(H$39="Two-way",X73,Y73) -> 0.96 | V73: 0.96 | W73: 1 | X73: 0.96 | Y73: 1 | AB73: 4ST | AC73: 0.229 | AI73: pre | AJ73: =(AJ70*T11+AJ71*U11)/(T11+U11) -> 0.114991191
C74: Right-turn channelization | H74: =IF($H$28="Signalized",EXP($T74*$S74),1) -> 1 | K74: =IF($H$28="Signalized",EXP($T74*$S74),1) -> 1 | S74: =H46 -> 0 | T74: =IF(H$39="Two-way",V74,W74) -> 0.2175 | U74: =IF(H$39="Two-way",X74,Y74) -> 0.2175 | V74: 0.2175 | W74: 0 | X74: 0.2175 | Y74: 0 | AB74: 4SG | AC74: 0.235 | AI74: cra | AJ74: 0.74
C75: Number of lanes | H75: =IF($H$28="Signalized",(EXP(T75*(H41-AF69))*AG69+1-AG69)*(EXP(T75*(I41-AF70))*AG70+1-AG70),1) -> 1.158009928 | K75: =IF($H$28="Signalized",(EXP(U75*(H41-AF69))*AG69+1-AG69)*(EXP(U75*(I41-AF70))*AG70+1-AG70),1) -> 1.158009928 | T75: =IF(H$39="Two-way",V75,W75) -> 0.194 | U75: =IF(H$39="Two-way",X75,Y75) -> 0.194 | V75: 0.194 | W75: 0.242 | X75: 0.194 | Y75: 0.242 | AI75: cre | AJ75: 1.18
C77: Vehicle-pedestrian crash CMFs | S77: Value | T77: 0 | U77: 1 | V77: 2 | W77: 3 | X77: 4 | Y77: 5 | Z77: 6 | AA77: 7 | AB77: 8 | AC77: Max
C78: Bus stops | H78: =HLOOKUP(S78,T$77:AC$80,2,FALSE) -> 1 | S78: =IF(H33<2,H33,"Max") -> 0 | T78: 1 | U78: 2.78 | AC78: 4.15
C79: Schools | H79: =HLOOKUP(S79,T$77:AC$80,3,FALSE) -> 1 | S79: =IF(H34="No",0,"Max") -> 0 | T79: 1 | AC79: 1.35
C80: Alcohol sales establishments | H80: =HLOOKUP(S80,T$77:AC$80,4,FALSE) -> 1 | S80: =IF(H35<9,H35,"Max") -> 0 | T80: 1 | U80: 1.12 | V80: 1.12 | W80: 1.12 | X80: 1.12 | Y80: 1.12 | Z80: 1.12 | AA80: 1.12 | AB80: 1.12 | AC80: 1.56

Sheet Totals
B1: =COLUMN() -> 2 | C1: =COLUMN() -> 3 | D1: =COLUMN() -> 4 | E1: =COLUMN() -> 5 | F1: =COLUMN() -> 6 | G1: =COLUMN() -> 7 | H1: =COLUMN() -> 8 | I1: =COLUMN() -> 9 | J1: =COLUMN() -> 10 | K1: =COLUMN() -> 11 | L1: =COLUMN() -> 12 | M1: =COLUMN() -> 13 | N1: =COLUMN() -> 14 | O1: =COLUMN() -> 15 | P1: =COLUMN() -> 16 | Q1: =COLUMN() -> 17 | R1: =COLUMN() -> 18 | S1: =COLUMN() -> 19 | T1: =COLUMN() -> 20 | U1: =COLUMN() -> 21 | V1: =COLUMN() -> 22 | W1: =COLUMN() -> 23 | X1: =COLUMN() -> 24 | Y1: =COLUMN() -> 25 | Z1: =COLUMN() -> 26 | AA1: =COLUMN() -> 27 | AB1: =COLUMN() -> 28 | AC1: =COLUMN() -> 29 | AD1: =COLUMN() -> 30 | AE1: =COLUMN() -> 31 | AF1: =COLUMN() -> 32 | AG1: =COLUMN() -> 33 | AH1: =COLUMN() -> 34 | AI1: =COLUMN() -> 35 | AJ1: =COLUMN() -> 36 | AK1: =COLUMN() -> 37 | AL1: =COLUMN() -> 38 | AM1: =COLUMN() -> 39 | AN1: =COLUMN() -> 40 | AO1: =COLUMN() -> 41 | AP1: =COLUMN() -> 42 | AQ1: =COLUMN() -> 43 | AR1: =COLUMN() -> 44 | AS1: =COLUMN() -> 45 | AT1: =COLUMN() -> 46 | AU1: =COLUMN() -> 47 | AV1: =COLUMN() -> 48 | AW1: =COLUMN() -> 49 | AX1: =COLUMN() -> 50 | AY1: =COLUMN() -> 51 | AZ1: =COLUMN() -> 52 | BA1: =COLUMN() -> 53 | BB1: =COLUMN() -> 54 | BC1: =COLUMN() -> 55 | BD1: =COLUMN() -> 56 | BE1: =COLUMN() -> 57 | BF1: =COLUMN() -> 58 | BG1: =COLUMN() -> 59 | BH1: =COLUMN() -> 60 | BI1: =COLUMN() -> 61 | BJ1: =COLUMN() -> 62 | BK1: =COLUMN() -> 63 | BL1: =COLUMN() -> 64 | BM1: =COLUMN() -> 65 | BN1: =COLUMN() -> 66 | BO1: =COLUMN() -> 67 | BP1: =COLUMN() -> 68 | BQ1: =COLUMN() -> 69 | BR1: =COLUMN() -> 70 | BS1: =COLUMN() -> 71 | BT1: =COLUMN() -> 72 | BU1: =COLUMN() -> 73 | BV1: =COLUMN() -> 74 | BW1: =COLUMN() -> 75 | BX1: =COLUMN() -> 76 | BY1: =COLUMN() -> 77 | BZ1: =COLUMN() -> 78 | CA1: =COLUMN() -> 79 | CB1: =COLUMN() -> 80 | CC1: =COLUMN() -> 81 | CD1: =COLUMN() -> 82 | CE1: =COLUMN() -> 83 | CF1: =COLUMN() -> 84 | CG1: =COLUMN() -> 85 | CH1: =COLUMN() -> 86 | CI1: =COLUMN() -> 87 | CJ1: =COLUMN() -> 88 | CK1: =COLUMN() -> 89 | CL1: =COLUMN() -> 90 | CM1: =COLUMN() -> 91 | CN1: =COLUMN() -> 92 | CO1: =COLUMN() -> 93 | CP1: =COLUMN() -> 94 | CQ1: =COLUMN() -> 95 | CR1: =COLUMN() -> 96 | CS1: =COLUMN() -> 97 | CT1: =COLUMN() -> 98 | CU1: =COLUMN() -> 99 | CV1: =COLUMN() -> 100
B2: Crash Totals Tabulation
B4: Empirical Bayes | F4: Facility Totals | I4: Project-Level Observed Crash Totals | R4: Total Predicted Crash Frequency, crashes / year | BA4: Npredicted: | BC4: w0:
B5: adjustment type: | F5: MV+SV: | I5: Crash type | O5: F+I | P5: PDO | R5: Site type | T5: Multiple-vehicle | V5: Single-vehicle | X5: Total-vehicle | Z5: Veh-ped | AA5: Veh-bike | BA5: Nobserved: | BC5: N0:
B6: None | F6: VP+VB: | I6: Multiple-vehicle crashes on segments: | O6: 9 | P6: 12 | T6: F+I | U6: PDO | V6: F+I | W6: PDO | X6: F+I | Y6: PDO | Z6: F+I | AA6: F+I | BA6: Npredictedw0: | BC6: w1:
F7: F+I: | I7: Single-vehicle crashes on segments: | O7: 3 | P7: 4 | R7: Segments: | BA7: Npredictedw1: | BC7: N1: | BE7: Nexpected:
F8: PDO: | I8: Total-vehicle crashes at all intersections: | O8: 7 | P8: 9 | R8: Intersections:
F9: Total: | I9: Vehicle-pedestrian crashes at signalized intersections: | O9: 2 | R9: Total: | BM9: Archived data
BM10: Origin sheet | BO10: Values
B11: Segment Site Information | F11: Predicted crash frequency, crashes / year | N11: Site-specific observed crash totals | R11: Predicted crash frequency, crashes / year | Z11: Combined CMF | AD11: Location information | AI11: Length | AJ11: Sum lookup | BG11: Inverse dispersion parameter coefficients
F12: Multiple-vehicle | H12: Single-vehicle | J12: Vehicle-pedestrian | L12: Vehicle-bicycle | N12: Multiple-vehicle | P12: Single-vehicle | R12: Multiple-vehicle | T12: Single-vehicle | V12: Vehicle-pedestrian | X12: Vehicle-bicycle | Z12: Multiple-vehicle | AB12: Single-vehicle | AK12: Multiple-vehicle | AM12: Single-vehicle | AO12: Multiple-vehicle | AQ12: Single-vehicle | AS12: Multiple-vehicle | AU12: Single-vehicle | AW12: Multiple-vehicle | AY12: Single-vehicle | BA12: Type | BB12: Multiple-vehicle | BD12: Single-vehicle | BH12: Multiple-vehicle | BJ12: Single-vehicle
B13: Number | C13: Year | D13: Type | E13: Street number | F13: F+I | G13: PDO | H13: F+I | I13: PDO | J13: F+I | L13: F+I | N13: F+I | O13: PDO | P13: F+I | Q13: PDO | R13: F+I | S13: PDO | T13: F+I | U13: PDO | V13: F+I | X13: F+I | Z13: F+I | AA13: PDO | AB13: F+I | AC13: PDO | AD13: Location | AE13: Street name | AK13: MV F+I | AL13: MV PDO | AM13: SV F+I | AN13: SV PDO | AO13: MV F+I | AP13: MV PDO | AQ13: SV F+I | AR13: SV PDO | AS13: MV F+I | AT13: MV PDO | AU13: SV F+I | AV13: SV PDO | AW13: MV F+I | AX13: MV PDO | AY13: SV F+I | AZ13: SV PDO | BB13: MV F+I | BC13: MV PDO | BD13: SV F+I | BE13: SV PDO | BG13: Type | BH13: MV F+I | BI13: MV PDO | BJ13: SV F+I | BK13: SV PDO
B14: 1 | C14: 2011 | D14: 6D | E14: SH 1 | F14: 5.492259873 | G14: 7.388894387 | H14: 0.9479016018 | I14: 1.166804101 | J14: 0.2249378994 | L14: 0.1199668797 | N14: 7 | O14: 9 | P14: 2 | Q14: 3 | Z14: 1.034843285 | AA14: 1.034843285 | AB14: 2.399610128 | AC14: 2.399610128 | AD14: City of Fillmore | AE14: Main Street | AI14: 0.4 | BA14: Npredicted | BG14: 6U | BH14: 2.87 | BI14: 3 | BJ14: 3.08 | BK14: 1.97 | BM14: Two-way segments | BO14: MPP | BP14: TTI | BQ14: 2015-11-06 | BR14: City of Fillmore | BS14: SH 1 | BT14: Main Street | BU14: 1 | BV14: 2011 | BW14: Suburban | BX14: 6D | BY14: 0.4 | BZ14: 90000 | CA14: 0 | CB14: 45 | CC14: No | CD14: 6 | CE14: 1 | CF14: 7 | CG14: 11 | CH14: 1.5 | CI14: 13 | CJ14: Yes | CK14: 18 | CL14: 7
B15: 1 | C15: 2011 | D15: 3O | E15: SH 1 | F15: 1.244462898 | G15: 2.985939839 | H15: 0.2269774411 | I15: 0.3087556526 | J15: 0.1143872599 | L15: 0.05242749414 | N15: 2 | O15: 3 | P15: 1 | Q15: 1 | Z15: 1.370053787 | AA15: 1.370053787 | AB15: 1.296935923 | AC15: 1.296935923 | AD15: City of Fillmore | AE15: Main Street | AI15: 0.4 | BA15: Nobserved | BG15: 6D | BH15: 2.05 | BI15: 1.91 | BJ15: 1.5 | BK15: 2 | BM15: One-way segments | BO15: MPP | BP15: TTI | BQ15: 2015-11-06 | BR15: City of Fillmore | BS15: SH 1 | BT15: Main Street | BU15: 1 | BV15: 2011 | BW15: Suburban | BX15: 3O | BY15: 0.4 | BZ15: No | CA15: 17500 | CB15: 30 | CC15: No | CD15: 6 | CE15: 7 | CF15: 11 | CG15: 1.5 | CH15: 0 | CI15: 0 | CJ15: 0 | CK15: 0 | CL15: 18 | CM15: 7
BA16: Npredictedw0 | BG16: 7T | BH16: 1.3 | BI16: 1.08 | BJ16: 3.08 | BK16: 1.97
BA17: Npredictedw1 | BG17: 8D | BH17: 2.49 | BI17: 1.67 | BJ17: 2.01 | BK17: 1.84
BG18: 2O | BH18: 2.12 | BI18: 2.46 | BJ18: 1.19 | BK18: 2.12
BG19: 3O | BH19: 2.57 | BI19: 2.45 | BJ19: 1.94 | BK19: 1.98
BG20: 4O | BH20: 2.46 | BI20: 2.52 | BJ20: 1.94 | BK20: 1.98
B30: Intersection Site Information | F30: Predicted crash frequency, crashes / year | N30: Site-specific observed crash totals | R30: Predicted crash frequency, crashes / year | Z30: Combined CMF | AD30: Location information | AI30: Type | AJ30: Sum lookup | BG30: Inverse dispersion parameter coefficients
F31: Total-vehicle | J31: Vehicle-pedestrian | L31: Vehicle-bicycle | N31: Total-vehicle | P31: Vehicle-pedestrian | R31: Total-vehicle | V31: Vehicle-pedestrian | X31: Vehicle-bicycle | Z31: Total-vehicle | AB31: Vehicle-pedestrian | AK31: Total-vehicle | AM31: Vehicle-pedestrian | AO31: Total-vehicle | AQ31: Vehicle-pedestrian | AS31: Total-vehicle | AU31: Vehicle-pedestrian | AW31: Total-vehicle | AY31: Vehicle-pedestrian | BA31: Type | BB31: Total-vehicle | BD31: Veh-ped | BH31: Total-vehicle | BJ31: Veh-ped
B32: Number | C32: Year | D32: Type | E32: Configuration | F32: F+I | H32: PDO | J32: F+I | L32: F+I | N32: F+I | O32: PDO | P32: F+I | R32: F+I | T32: PDO | V32: F+I | X32: F+I | Z32: F+I | AA32: PDO | AB32: F+I | AD32: Major street name | AE32: Minor street name | AK32: TV F+I | AL32: TV PDO | AM32: VP F+I | AO32: TV F+I | AP32: TV PDO | AQ32: VP F+I | AS32: TV F+I | AT32: TV PDO | AU32: VP F+I | AW32: TV F+I | AX32: TV PDO | AY32: VP F+I | BB32: TV F+I | BC32: TV PDO | BD32: VP F+I | BG32: Type & configuration | BH32: TV F+I | BI32: TV PDO | BJ32: VP F+I
B33: 1 | C33: 2011 | D33: 4SG | E33: Two-way | F33: 2.17666759 | H33: 2.109563806 | J33: 0.09454767712 | L33: 0.08143839653 | N33: 3 | O33: 3 | P33: 2 | Z33: 0.5250549578 | AA33: 0.5250549578 | AB33: 1 | AD33: Main Street | AE33: Cross Street | AI33: 4SG, Two-way | BA33: Npredicted | BG33: 3ST, Two-way | BH33: 1.54 | BI33: 1.34 | BM33: Intersections | BO33: MPP | BP33: TTI | BQ33: 2015-11-06 | BR33: City of Fillmore | BS33: Main Street | BT33: Cross Street | BU33: 1 | BV33: 2011 | BW33: Urban | BX33: 4 | BY33: Signalized | BZ33: Yes | CA33: No | CB33: 700 | CC33: 7 | CD33: 0 | CE33: No | CF33: 0 | CG33: Two-way | CH33: 20000 | CI33: 6 | CJ33: 2 | CK33: 2 | CL33: 2 | CM33: 0 | CN33: 0 | CO33: Two-way | CP33: 10000 | CQ33: 4 | CR33: 2 | CS33: 0 | CT33: 0 | CU33: 2 | CV33: 2
B34: 1 | C34: 2011 | D34: 4ST | E34: Two-way | F34: 3.476022401 | H34: 4.897640641 | J34: 0.4103094891 | L34: 0.3265728586 | N34: 4 | O34: 6 | Z34: 1.057239904 | AA34: 1.057239904 | AB34: 1 | AD34: Main Street | AE34: Cross Street | AI34: 4ST, Two-way | BA34: Nobserved | BG34: 3SG, Two-way | BH34: 1.93 | BI34: 1 | BJ34: 0.52 | BM34: Intersections | BO34: MPP | BP34: TTI | BQ34: 2015-11-06 | BR34: City of Fillmore | BS34: Main Street | BT34: Cross Street | BU34: 1 | BV34: 2011 | BW34: Urban | BX34: 4 | BY34: Two-way stop | BZ34: Yes | CA34: No | CB34: 700 | CC34: 7 | CD34: 0 | CE34: No | CF34: 0 | CG34: Two-way | CH34: 20000 | CI34: 6 | CJ34: 2 | CK34: 2 | CL34: 2 | CM34: 0 | CN34: 0 | CO34: Two-way | CP34: 10000 | CQ34: 4 | CR34: 2 | CS34: 0 | CT34: 0 | CU34: 2 | CV34: 2
BA35: Npredictedw0 | BG35: 4ST, Two-way | BH35: 1.67 | BI35: 0.88
BA36: Npredictedw1 | BG36: 4SG, Two-way | BH36: 1.77 | BI36: 1.01 | BJ36: 0.24
BG37: 3ST, One-way | BH37: 0.5 | BI37: 0.97
BG38: 3SG, One-way | BH38: 1.05 | BI38: 1.11 | BJ38: 0.52
BG39: 4ST, One-way | BH39: 1.88 | BI39: 1.04
BG40: 4SG, One-way | BH40: 0.75 | BI40: 0.5 | BJ40: 0.24
